fUST/lending_fUST_20240227
["ID","MTS","AMOUNT","RATE_DAILY","PERIOD"]
[315426216,1709027440062,-500.0,0.00019178,2]
[315426218,1709027440071,-500.18571217,0.00019178,2]
[315426220,1709027440081,-500.20544472,0.00019178,2]
[315426222,1709027440090,-500.0,0.00019178,2]
[315426224,1709027440100,-502.10295356,0.00019178,2]
[315426226,1709027440109,-500.0,0.00019178,2]
[315426228,1709027440121,-500.0,0.00019178,2]
[315426230,1709027440131,-500.0,0.00019178,2]
[315426232,1709027440140,-500.0,0.00019178,2]
[315426234,1709027440150,-500.0,0.00019178,2]
[315426236,1709027440162,-500.0,0.00019178,2]
[315426238,1709027440171,-500.0,0.00019178,2]
[315426240,1709027440181,-936.37,0.00019178,2]
[315426242,1709027440191,-500.0,0.00019178,2]
[315426244,1709027440200,-500.0,0.00019178,2]
[315426246,1709027440209,-713.62,0.00019178,2]
[315426248,1709027440219,-500.0,0.00019178,2]
[315426250,1709027440229,-500.0,0.00019178,2]
[315426252,1709027440239,-500.0,0.00019178,2]
[315426253,1709027440250,-500.0,0.00019178,2]
[315426256,1709027440260,-501.22080587,0.00019178,2]
[315426258,1709027440269,-728.61,0.00019178,2]
[315426259,1709027440279,-320.15175574,0.00019178,2]
[315426261,1709027440289,-502.97392599,0.00019178,2]
[315426264,1709027440299,-500.0,0.00019178,2]
[315426265,1709027440308,-500.0,0.00019178,2]
[315426267,1709027440318,-500.0,0.00019178,2]
[315426269,1709027440327,-219.47365743,0.00019178,2]
[315426271,1709027440337,-500.0,0.00019178,2]
[315426273,1709027440347,-500.0,0.00019178,2]
[315426275,1709027440356,-1531.54,0.00019178,2]
[315426277,1709027440366,-1145.1,0.00019178,2]
[315426279,1709027440375,-3597.84,0.00019178,2]
[315426281,1709027440385,-429.14374354,0.00019178,2]
[315426283,1709027440394,-500.0,0.00019178,2]
[315426285,1709027440403,-500.0,0.00019178,2]
[315426287,1709027440413,-1660.55,0.00019178,2]
[315426289,1709027440422,-500.96626582,0.00019178,2]
[315426291,1709027440431,-500.0,0.00019178,2]
[315426293,1709027440440,-500.0,0.00019178,2]
[315426295,1709027440449,-804.24,0.00019178,2]
[315426297,1709027440459,-2462.59,0.00019178,2]
[315426299,1709027440468,-500.0,0.00019178,2]
[315426301,1709027440477,-579.62,0.00019178,2]
[315426303,1709027440486,-500.0,0.00019178,2]
[315426305,1709027440496,-500.0,0.00019178,2]
[315426307,1709027440505,-500.27404044,0.00019178,2]
[315426309,1709027440516,-500.0,0.00019178,2]
[315426311,1709027440525,-500.0,0.00019178,2]
[315426313,1709027440533,-500.0,0.00019178,2]
[315426315,1709027440542,-1407.15,0.00019178,2]
[315426317,1709027440551,-9585.84,0.00019178,2]
[315426319,1709027440560,-500.0,0.00019178,2]
[315426321,1709027440569,-503.20835864,0.00019178,2]
[315426323,1709027440578,-500.67580525,0.00019178,2]
[315426325,1709027440588,-1000.0,0.00019178,2]
[315426327,1709027440597,-500.57076762,0.00019178,2]
[315426330,1709027440606,-500.0,0.00019178,2]
[315426331,1709027440616,-3809.28,0.00019178,2]
[315426333,1709027440626,-500.0,0.00019178,2]
[315426336,1709027440637,-500.0,0.00019178,2]
[315426337,1709027440646,-500.0,0.00019178,2]
[315426339,1709027440655,-500.0,0.00019178,2]
[315426341,1709027440664,-268.55333724,0.00019178,2]
[315426343,1709027440673,-500.0,0.00019178,2]
[315426345,1709027440683,-554.18861888,0.00019178,2]
[315426347,1709027440695,-629.01,0.00019178,2]
[315426349,1709027440705,-500.0,0.00019178,2]
[315426351,1709027440714,-500.0,0.00019178,2]
[315426353,1709027440724,-646.67,0.00019178,2]
[315426355,1709027440734,-500.0,0.00019178,2]
[315426357,1709027440743,-500.0,0.00019178,2]
[315426359,1709027440753,-500.0,0.00019178,2]
[315426361,1709027440763,-500.0,0.00019178,2]
[315426363,1709027440773,-585.18,0.00019178,2]
[315426365,1709027440783,-1895.81,0.00019178,2]
[315426367,1709027440792,-500.82103858,0.00019178,2]
[315426369,1709027440801,-1948.04,0.00019178,2]
[315426371,1709027440810,-500.0,0.00019178,2]
[315426373,1709027440820,-500.0,0.00019178,2]
[315426375,1709027440829,-549.59387891,0.00019178,2]
[315426377,1709027440838,-504.40324197,0.00019178,2]
[315426379,1709027440847,-500.0,0.00019178,2]
[315426381,1709027440856,-2668.72,0.00019178,2]
[315426383,1709027440865,-544.99348939,0.00019178,2]
[315426385,1709027440874,-500.0,0.00019178,2]
[315426387,1709027440884,-500.0,0.00019178,2]
[315426389,1709027440892,-443.10422866,0.00019178,2]
[315426391,1709027440901,-500.0,0.00019178,2]
[315426393,1709027440911,-500.0,0.00019178,2]
[315426395,1709027440921,-500.0,0.00019178,2]
[315426397,1709027440930,-500.0,0.00019178,2]
[315426399,1709027440939,-155.0,0.00019178,2]
[315426401,1709027440948,-19086.73,0.00019178,2]
[315426403,1709027440957,-500.0,0.00019178,2]
[315426405,1709027440966,-500.0,0.00019178,2]
[315426407,1709027440975,-500.0,0.00019178,2]
[315426409,1709027440984,-510.03816746,0.00019178,2]
[315426411,1709027440993,-500.0,0.00019178,2]
[315426413,1709027441003,-500.0,0.00019178,2]
[315426415,1709027441014,-500.0,0.00019178,2]
[315426417,1709027441023,-500.0,0.00019178,2]
[315426419,1709027441032,-500.0,0.00019178,2]
[315426421,1709027441042,-500.0,0.00019178,2]
[315426423,1709027441051,-1092.77,0.00019178,2]
[315426425,1709027441060,-1092.77,0.00019178,2]
[315426427,1709027441069,-1092.77,0.00019178,2]
[315426428,1709027441078,-1092.77,0.00019178,2]
[315426430,1709027441090,-1092.77,0.00019178,2]
[315426432,1709027441099,-500.0,0.00019178,2]
[315426434,1709027441108,-1092.77,0.00019178,2]
[315426436,1709027441116,-1837.2,0.00019178,2]
[315426438,1709027441125,-1092.77,0.00019178,2]
[315426440,1709027441134,-1092.77,0.00019178,2]
[315426442,1709027441142,-1092.77,0.00019178,2]
[315426444,1709027441152,-1092.77,0.00019178,2]
[315426446,1709027441160,-1092.77,0.00019178,2]
[315426448,1709027441171,-518.76,0.00019178,2]
[315426450,1709027441180,-1417.28,0.00019178,2]
[315426452,1709027441189,-500.0,0.00019178,2]
[315426454,1709027441197,-500.0,0.00019178,2]
[315426456,1709027441207,-500.0,0.00019178,2]
[315426458,1709027441215,-500.0,0.00019178,2]
[315426460,1709027441224,-500.0,0.00019178,2]
[315426462,1709027441233,-500.0,0.00019178,2]
[315426464,1709027441242,-7056.21,0.00019178,2]
[315426466,1709027441251,-500.91730771,0.00019178,2]
[315426468,1709027441261,-501.01152787,0.00019178,2]
[315426470,1709027441270,-500.0,0.00019178,2]
[315426472,1709027441279,-644.75,0.00019178,2]
[315426473,1709027441288,-3441.29,0.00019178,2]
[315426475,1709027441297,-4901.83,0.00019178,2]
[315426477,1709027441306,-2318.91,0.00019178,2]
[315426479,1709027441314,-500.0,0.00019178,2]
[315426481,1709027441323,-500.0,0.00019178,2]
[315426483,1709027441332,-500.0,0.00019178,2]
[315426485,1709027441340,-500.0,0.00019178,2]
[315426487,1709027441349,-1468.81,0.00019178,2]
[315426489,1709027441358,-500.0,0.00019178,2]
[315426491,1709027441367,-500.0,0.00019178,2]
[315426493,1709027441375,-500.0,0.00019178,2]
[315426495,1709027441384,-501.17206482,0.00019178,2]
[315426497,1709027441393,-19505.57,0.00019178,2]
[315426499,1709027441402,-500.0,0.00019178,2]
[315426501,1709027441411,-2468.08,0.00019178,2]
[315426503,1709027441420,-500.0,0.00019178,2]
[315426505,1709027441429,-3101.61,0.00019178,2]
[315426507,1709027441439,-285.05808848,0.00019178,2]
[315426509,1709027441448,-500.0,0.00019178,2]
[315426511,1709027441457,-943.38,0.00019178,2]
[315426513,1709027441467,-524.3336593,0.00019178,2]
[315426515,1709027441477,-505.06033528,0.00019178,2]
[315426517,1709027441487,-500.0,0.00019178,2]
[315426519,1709027441497,-500.0,0.00019178,2]
[315426521,1709027441507,-500.64514974,0.00019178,2]
[315426523,1709027441519,-694.82180753,0.00019178,2]
[315426525,1709027441528,-171.530648,0.00019178,2]
[315426527,1709027441536,-172.070077,0.00019178,2]
[315426529,1709027441546,-430.973088,0.00019178,4]
[315426531,1709027441555,-166.666666,0.00019178,2]
[315426533,1709027441564,-500.0,0.00019206,2]
[315426535,1709027441573,-486.79569354,0.00019261,2]
[315426537,1709027441582,-1619.97680141,0.00019352,2]
[315426539,1709027441591,-1070.7532435,0.00019366,2]
[315426540,1709027441601,-153.0,0.0001937,2]
[315426542,1709027441610,-153.0,0.0001937,2]
[315426544,1709027441621,-153.0,0.0001937,2]
[315426547,1709027441630,-153.0,0.0001937,2]
[315426549,1709027441640,-295.2105092,0.0001937,2]
[315426550,1709027441649,-155.5496449,0.0001937,2]
[315426553,1709027441659,-153.0,0.0001937,2]
[315426554,1709027441667,-153.0,0.0001937,2]
[315426556,1709027441677,-153.0,0.0001937,2]
[315426558,1709027441686,-153.0,0.0001937,2]
[315426560,1709027441695,-153.0,0.0001937,2]
[315426562,1709027441705,-153.0,0.0001937,2]
[315426565,1709027441715,-153.0,0.0001937,2]
[315426566,1709027441724,-153.0,0.0001937,2]
[315426568,1709027441734,-153.0,0.0001937,2]
[315426571,1709027441743,-153.0,0.0001937,2]
[315426573,1709027441753,-153.0,0.0001937,2]
[315426574,1709027441764,-153.0,0.0001937,2]
[315426576,1709027441773,-153.0,0.0001937,2]
[315426578,1709027441783,-153.0,0.0001937,2]
[315426580,1709027441791,-153.0,0.0001937,2]
[315426582,1709027441801,-153.0,0.0001937,2]
[315426584,1709027441811,-153.0,0.0001937,2]
[315426586,1709027441820,-257.1296584,0.0001937,2]
[315426588,1709027441829,-153.0,0.0001937,2]
[315426590,1709027441839,-153.0,0.0001937,2]
[315426592,1709027441848,-153.0,0.0001937,2]
[315426594,1709027441857,-153.0,0.0001937,2]
[315426596,1709027441866,-153.0,0.0001937,2]
[315426598,1709027441875,-153.0,0.0001937,2]
[315426600,1709027441884,-153.0,0.0001937,2]
[315426601,1709027441894,-153.0,0.0001937,2]
[315426602,1709027441903,-153.0,0.0001937,2]
[315426603,1709027441912,-387.8836946,0.0001937,2]
[315426604,1709027441921,-153.0,0.0001937,2]
[315426605,1709027441930,-153.0,0.0001937,2]
[315426606,1709027441939,-153.0,0.0001937,2]
[315426607,1709027441948,-153.0,0.0001937,2]
[315426608,1709027441957,-153.0,0.0001937,2]
[315426609,1709027441966,-153.0,0.0001937,2]
[315426610,1709027441975,-153.0,0.0001937,2]
[315426611,1709027441984,-153.0,0.0001937,2]
[315426612,1709027441993,-153.0,0.0001937,2]
[315426613,1709027442002,-153.0,0.0001937,2]
[315426614,1709027442013,-196.6153443,0.0001937,2]
[315426615,1709027442022,-153.0,0.0001937,2]
[315426616,1709027442031,-153.0,0.0001937,2]
[315426617,1709027442041,-153.0,0.0001937,2]
[315426618,1709027442050,-153.0,0.0001937,2]
[315426619,1709027442059,-1092.77,0.00019451,2]
[315426620,1709027442069,-1092.77,0.00019451,2]
[315426621,1709027442079,-1092.77,0.00019451,2]
[315426622,1709027442088,-500.0,0.00019452,2]
[315426623,1709027442186,-1307.25,0.00019452,2]
[315426625,1709027442195,-501.35,0.00019452,2]
[315426627,1709027442205,-500.0,0.00019452,2]
[315426629,1709027442215,-798.98,0.00019452,2]
[315426631,1709027442224,-500.0,0.00019452,2]
[315426633,1709027442233,-500.0,0.00019452,2]
[315426635,1709027442242,-500.0,0.00019452,2]
[315426637,1709027442253,-500.0,0.00019452,2]
[315426638,1709027442264,-500.0,0.00019452,2]
[315426641,1709027442275,-500.0,0.00019452,2]
[315426643,1709027442284,-500.0,0.00019452,2]
[315426645,1709027442295,-500.0,0.00019452,2]
[315426647,1709027442306,-501.00933044,0.00019452,2]
[315426649,1709027442320,-500.0,0.00019452,2]
[315426651,1709027442331,-777.41,0.00019452,2]
[315426653,1709027442342,-500.0,0.00019452,2]
[315426655,1709027442351,-500.0,0.00019452,2]
[315426657,1709027442360,-500.0,0.00019452,2]
[315426659,1709027442369,-294.53909541,0.00019452,2]
[315426661,1709027442379,-500.0,0.00019452,2]
[315426663,1709027442388,-500.0,0.00019452,2]
[315426665,1709027442398,-500.0,0.00019452,2]
[315426667,1709027442407,-500.0,0.00019452,2]
[315426669,1709027442416,-500.0,0.00019452,2]
[315426671,1709027442424,-500.0,0.00019452,2]
[315426673,1709027442434,-502.85792086,0.00019452,2]
[315426675,1709027442443,-1299.19,0.00019452,2]
[315426677,1709027442452,-500.0,0.00019452,2]
[315426679,1709027442461,-500.0,0.00019452,2]
[315426681,1709027442470,-500.0,0.00019452,2]
[315426683,1709027442479,-500.0,0.00019452,2]
[315426685,1709027442488,-500.0,0.00019452,2]
[315426687,1709027442498,-500.0,0.00019452,2]
[315426689,1709027442506,-500.0,0.00019452,2]
[315426691,1709027442517,-1649.49,0.00019452,2]
[315426693,1709027442526,-500.0,0.00019452,2]
[315426695,1709027442536,-500.0,0.00019452,2]
[315426697,1709027442545,-500.0,0.00019452,2]
[315426699,1709027442554,-500.0,0.00019452,2]
[315426701,1709027442563,-500.0,0.00019452,2]
[315426703,1709027442573,-500.0,0.00019452,2]
[315426705,1709027442583,-500.0,0.00019452,2]
[315426707,1709027442592,-200.27457697,0.00019452,2]
[315426709,1709027442601,-500.0,0.00019452,2]
[315426711,1709027442611,-500.0,0.00019452,2]
[315426712,1709027442620,-500.0,0.00019452,2]
[315426714,1709027442629,-1568.07,0.00019452,2]
[315426716,1709027442639,-336.01860419,0.00019452,2]
[315426718,1709027442648,-500.0,0.00019452,2]
[315426721,1709027442657,-500.0,0.00019452,2]
[315426723,1709027442667,-501.83788764,0.00019452,2]
[315426725,1709027442676,-755.73,0.00019452,2]
[315426726,1709027442685,-500.0,0.00019452,2]
[315426729,1709027442694,-500.0,0.00019452,2]
[315426731,1709027442704,-500.0,0.00019452,2]
[315426732,1709027442713,-376.53396052,0.00019452,2]
[315426734,1709027442722,-500.0,0.00019452,2]
[315426736,1709027442732,-500.0,0.00019452,2]
[315426738,1709027442741,-500.0,0.00019452,2]
[315426740,1709027442751,-501.19562815,0.00019452,2]
[315426742,1709027442761,-500.0,0.00019452,2]
[315426744,1709027442770,-936.37,0.00019452,2]
[315426746,1709027442779,-500.0,0.00019452,2]
[315426748,1709027442788,-500.0,0.00019452,2]
[315426750,1709027442798,-713.62,0.00019452,2]
[315426752,1709027442807,-500.0,0.00019452,2]
[315426754,1709027442816,-500.0,0.00019452,2]
[315426756,1709027442826,-728.61,0.00019452,2]
[315426758,1709027442835,-500.0,0.00019452,2]
[315426760,1709027442843,-500.0,0.00019452,2]
[315426762,1709027442853,-476.05935812,0.00019452,2]
[315426764,1709027442862,-500.0,0.00019452,2]
[315426766,1709027442871,-1531.54,0.00019452,2]
[315426768,1709027442880,-1145.1,0.00019452,2]
[315426771,1709027442889,-3597.84,0.00019452,2]
[315426774,1709027442898,-500.0,0.00019452,2]
[315426777,1709027442908,-500.0,0.00019452,2]
[315426779,1709027442917,-1660.55,0.00019452,2]
[315426781,1709027442926,-500.0,0.00019452,2]
[315426783,1709027442935,-804.24,0.00019452,2]
[315426785,1709027442945,-2462.59,0.00019452,2]
[315426787,1709027442955,-500.0,0.00019452,2]
[315426789,1709027442964,-579.62,0.00019452,2]
[315426791,1709027442973,-302.1536889,0.00019452,2]
[315426793,1709027442982,-500.0,0.00019452,2]
[315426795,1709027442991,-500.0,0.00019452,2]
[315426797,1709027443001,-500.0,0.00019452,2]
[315426798,1709027443011,-1407.15,0.00019452,2]
[315426801,1709027443020,-9585.84,0.00019452,2]
[315426804,1709027443030,-501.29042956,0.00019452,2]
[315426806,1709027443039,-1000.0,0.00019452,2]
[315426807,1709027443049,-500.0,0.00019452,2]
[315426809,1709027443058,-3809.28,0.00019452,2]
[315426811,1709027443067,-255.55957885,0.00019452,2]
[315426814,1709027443077,-500.0,0.00019452,2]
[315426816,1709027443087,-377.54615885,0.00019452,2]
[315426818,1709027443097,-152.09589941,0.00019452,2]
[315426819,1709027443106,-500.0,0.00019452,2]
[315426822,1709027443116,-629.01,0.00019452,2]
[315426824,1709027443125,-500.0,0.00019452,2]
[315426825,1709027443134,-500.0,0.00019452,2]
[315426827,1709027443143,-646.67,0.00019452,2]
[315426829,1709027443153,-500.0,0.00019452,2]
[315426831,1709027443163,-500.0,0.00019452,2]
[315426833,1709027443175,-581.55260075,0.00019452,2]
[315426835,1709027443184,-500.0,0.00019452,2]
[315426837,1709027443194,-585.18,0.00019452,2]
[315426839,1709027443203,-1895.81,0.00019452,2]
[315426841,1709027443212,-1948.04,0.00019452,2]
[315426843,1709027443222,-500.0,0.00019452,2]
[315426845,1709027443231,-500.0,0.00019452,2]
[315426847,1709027443240,-500.0,0.00019452,2]
[315426849,1709027443250,-2668.72,0.00019452,2]
[315426851,1709027443260,-500.0,0.00019452,2]
[315426853,1709027443269,-500.0,0.00019452,2]
[315426855,1709027443279,-479.74109791,0.00019452,2]
[315426857,1709027443288,-500.0,0.00019452,2]
[315426859,1709027443297,-500.0,0.00019452,2]
[315426860,1709027443306,-500.0,0.00019452,2]
[315426862,1709027443316,-19086.73,0.00019452,2]
[315426864,1709027443325,-491.01392198,0.00019452,2]
[315426867,1709027443334,-500.0,0.00019452,2]
[315426868,1709027443344,-500.0,0.00019452,2]
[315426871,1709027443354,-500.0,0.00019452,2]
[315426872,1709027443363,-500.0,0.00019452,2]
[315426874,1709027443371,-226.05511992,0.00019452,2]
[315426876,1709027443381,-500.0,0.00019452,2]
[315426878,1709027443390,-262.021544,0.00019452,2]
[315426880,1709027443399,-500.0,0.00019452,2]
[315426883,1709027443408,-500.0,0.00019452,2]
[315426884,1709027443418,-1837.2,0.00019452,2]
[315426886,1709027443427,-518.76,0.00019452,2]
[315426888,1709027443437,-1417.28,0.00019452,2]
[315426890,1709027443446,-500.0,0.00019452,2]
[315426892,1709027443455,-500.0,0.00019452,2]
[315426894,1709027443464,-410.10016763,0.00019452,2]
[315426896,1709027443473,-501.34358401,0.00019452,2]
[315426898,1709027443483,-7056.21,0.00019452,2]
[315426900,1709027443492,-500.0,0.00019452,2]
[315426902,1709027443501,-644.75,0.00019452,2]
[315426905,1709027443511,-3441.29,0.00019452,2]
[315426907,1709027443520,-4901.83,0.00019452,2]
[315426908,1709027443530,-2318.91,0.00019452,2]
[315426910,1709027443539,-504.14013285,0.00019452,2]
[315426912,1709027443548,-500.0,0.00019452,2]
[315426914,1709027443557,-500.0,0.00019452,2]
[315426916,1709027443566,-1468.81,0.00019452,2]
[315426918,1709027443575,-295.01720244,0.00019452,2]
[315426920,1709027443584,-19505.57,0.00019452,2]
[315426922,1709027443593,-282.6196593,0.00019452,2]
[315426924,1709027443602,-2468.08,0.00019452,2]
[315426926,1709027443612,-3101.61,0.00019452,2]
[315426928,1709027443621,-500.0,0.00019452,2]
[315426930,1709027443630,-943.38,0.00019452,2]
[315426932,1709027443639,-500.0,0.00019452,2]
[315426934,1709027443648,-500.0,0.00019452,2]
[315426936,1709027443657,-1619.97680138,0.00019524,2]
[315426938,1709027443666,-166.666666,0.00019627,2]
[315426940,1709027443677,-1070.7532435,0.00019633,2]
[315426942,1709027443686,-1619.97680138,0.00019696,2]
[315426944,1709027443697,-1092.77,0.00019725,2]
[315426946,1709027443706,-1092.77,0.00019725,2]
[315426948,1709027443715,-1092.77,0.00019725,2]
[315426950,1709027443724,-500.0,0.00019726,2]
[315426951,1709027443733,-1307.25,0.00019726,2]
[315426953,1709027443742,-501.35,0.00019726,2]
[315426955,1709027443751,-500.0,0.00019726,2]
[315426957,1709027443761,-798.98,0.00019726,2]
[315426959,1709027443771,-299.44952129,0.00019726,2]
[315426961,1709027443780,-466.40052004,0.00019726,2]
[315426963,1709027443789,-500.0,0.00019726,2]
[315426965,1709027443799,-401.01611644,0.00019726,2]
[315426967,1709027443808,-500.0,0.00019726,2]
[315426969,1709027443817,-500.0,0.00019726,2]
[315426971,1709027443825,-500.0,0.00019726,2]
[315426973,1709027443834,-311.25723657,0.00019726,2]
[315426975,1709027443843,-777.41,0.00019726,2]
[315426977,1709027443852,-500.0,0.00019726,2]
[315426979,1709027443861,-500.0,0.00019726,2]
[315426981,1709027443870,-500.0,0.00019726,2]
[315426983,1709027443879,-500.0,0.00019726,2]
[315426985,1709027443889,-500.0,0.00019726,2]
[315426986,1709027443899,-500.0,0.00019726,2]
[315426988,1709027443908,-500.0,0.00019726,2]
[315426990,1709027443918,-500.0,0.00019726,2]
[315426992,1709027443927,-501.97109407,0.00019726,2]
[315426994,1709027443936,-1299.19,0.00019726,2]
[315426996,1709027443945,-500.0,0.00019726,2]
[315426998,1709027443954,-500.0,0.00019726,2]
[315427000,1709027443963,-500.0,0.00019726,2]
[315427001,1709027443973,-500.0,0.00019726,2]
[315427002,1709027443982,-502.56998248,0.00019726,2]
[315427003,1709027443990,-500.0,0.00019726,2]
[315427004,1709027444000,-212.44196053,0.00019726,2]
[315427005,1709027444009,-1649.49,0.00019726,2]
[315427006,1709027444020,-500.0,0.00019726,2]
[315427007,1709027444029,-500.0,0.00019726,2]
[315427008,1709027444038,-395.16181797,0.00019726,2]
[315427009,1709027444047,-500.0,0.00019726,2]
[315427010,1709027444056,-500.0,0.00019726,2]
[315427011,1709027444065,-235.52195681,0.00019726,2]
[315427012,1709027444074,-500.0,0.00019726,2]
[315427013,1709027444084,-500.0,0.00019726,2]
[315427014,1709027444093,-317.207108,0.00019726,2]
[315427016,1709027444102,-1568.07,0.00019726,2]
[315427018,1709027444111,-500.0,0.00019726,2]
[315427019,1709027444120,-369.62759187,0.00019726,2]
[315427021,1709027444129,-755.73,0.00019726,2]
[315427023,1709027444138,-500.0,0.00019726,2]
[315427025,1709027444148,-500.0,0.00019726,2]
[315427027,1709027444157,-501.12415207,0.00019726,2]
[315427029,1709027444167,-500.0,0.00019726,2]
[315427030,1709027444178,-500.0,0.00019726,2]
[315427032,1709027444187,-500.0,0.00019726,2]
[315427034,1709027444196,-315.7665185,0.00019726,2]
[315427036,1709027444205,-936.37,0.00019726,2]
[315427038,1709027444216,-500.0,0.00019726,2]
[315427040,1709027444225,-500.0,0.00019726,2]
[315427042,1709027444233,-713.62,0.00019726,2]
[315427043,1709027444243,-500.0,0.00019726,2]
[315427044,1709027444253,-500.0,0.00019726,2]
[315427046,1709027444263,-728.61,0.00019726,2]
[315427048,1709027444271,-500.0,0.00019726,2]
[315427049,1709027444280,-500.0,0.00019726,2]
[315427051,1709027444290,-241.83685928,0.00019726,2]
[315427053,1709027444299,-1531.54,0.00019726,2]
[315427055,1709027444309,-1145.1,0.00019726,2]
[315427057,1709027444318,-3597.84,0.00019726,2]
[315427059,1709027444327,-500.0,0.00019726,2]
[315427061,1709027444336,-500.0,0.00019726,2]
[315427063,1709027444345,-1660.55,0.00019726,2]
[315427065,1709027444354,-500.0,0.00019726,2]
[315427066,1709027444363,-804.24,0.00019726,2]
[315427068,1709027444373,-2462.59,0.00019726,2]
[315427079,1709027444458,-500.0,0.00019726,2]
[315427081,1709027444478,-579.62,0.00019726,2]
[315427083,1709027444488,-500.0,0.00019726,2]
[315427085,1709027444497,-500.0,0.00019726,2]
[315427087,1709027444507,-1407.15,0.00019726,2]
[315427089,1709027444517,-9585.84,0.00019726,2]
[315427091,1709027444526,-1002.42085392,0.00019726,2]
[315427093,1709027444536,-500.0,0.00019726,2]
[315427095,1709027444545,-3809.28,0.00019726,2]
[315427097,1709027444555,-507.42166358,0.00019726,2]
[315427099,1709027444564,-500.0,0.00019726,2]
[315427101,1709027444574,-629.01,0.00019726,2]
[315427103,1709027444582,-502.32182453,0.00019726,2]
[315427105,1709027444591,-500.0,0.00019726,2]
[315427107,1709027444600,-646.67,0.00019726,2]
[315427109,1709027444609,-500.0,0.00019726,2]
[315427110,1709027444618,-500.0,0.00019726,2]
[315427112,1709027444627,-500.0,0.00019726,2]
[315427114,1709027444637,-585.18,0.00019726,2]
[315427116,1709027444646,-1895.81,0.00019726,2]
[315427118,1709027444655,-1948.04,0.00019726,2]
[315427120,1709027444664,-495.60629693,0.00019726,2]
[315427122,1709027444674,-500.0,0.00019726,2]
[315427124,1709027444683,-2668.72,0.00019726,2]
[315427126,1709027444692,-500.0,0.00019726,2]
[315427128,1709027444701,-500.0,0.00019726,2]
[315427130,1709027444710,-369.76023936,0.00019726,2]
[315427132,1709027444720,-500.0,0.00019726,2]
[315427134,1709027444728,-500.0,0.00019726,2]
[315427136,1709027444737,-19086.73,0.00019726,2]
[315427138,1709027444746,-500.0,0.00019726,2]
[315427139,1709027444755,-500.0,0.00019726,2]
[315427141,1709027444766,-500.0,0.00019726,2]
[315427143,1709027444776,-500.0,0.00019726,2]
[315427145,1709027444785,-500.0,0.00019726,2]
[315427147,1709027444794,-1837.2,0.00019726,2]
[315427149,1709027444804,-500.0,0.00019726,2]
[315427151,1709027444812,-518.76,0.00019726,2]
[315427153,1709027444823,-1417.28,0.00019726,2]
[315427155,1709027444832,-500.0,0.00019726,2]
[315427157,1709027444841,-533.40617444,0.00019726,2]
[315427159,1709027444850,-7056.21,0.00019726,2]
[315427161,1709027444860,-644.75,0.00019726,2]
[315427163,1709027444869,-3441.29,0.00019726,2]
[315427165,1709027444879,-4901.83,0.00019726,2]
[315427167,1709027444889,-2318.91,0.00019726,2]
[315427169,1709027444897,-500.0,0.00019726,2]
[315427170,1709027444906,-1468.81,0.00019726,2]
[315427172,1709027444916,-19505.57,0.00019726,2]